Cogmind - Beta 14 @@@ ROGUE MODE // 2024.10.03 @ 05:06:39 Player: Carpathian Result: Self-destructed Performance ------------- Evolutions (2) 1000 Regions Visited (3) 600 Robots Destroyed (11) 55 Value Destroyed (343) 343 Prototype IDs (0) 0 Alien Tech Used (0) 0 Bonus (0) 0 TOTAL SCORE: 1998 Bonus ------- None Cogmind --------- Core Integrity 150/550 Matter 24/300 Energy 100/100 System Corruption 0% Temperature Cool (9) Movement Core (50) Location -8/Materials Parts ------- > --- POWER (2) -------- (None) > --- PROPULSION (2) --- (None) > --- UTILITY (5) ------ (None) > --- WEAPON (2) ------- Light Cannon > --- INVENTORY (5) ---- Improved Ion Engine Advanced Treads Advanced Treads Improved Datajack Peak State ------------ > --- POWER ------------ Deuterium Engine > --- PROPULSION ------- Advanced Treads Advanced Treads > --- UTILITY ---------- Small Storage Unit Light Armor Plating > --- WEAPON ----------- Shotgun Grenade Launcher > --- INVENTORY -------- Ion Engine Improved Ion Engine Advanced Treads Advanced Treads Light Cannon Light Cannon Light Cannon Improved Datajack [Rating: 15] Favorites ----------- Power Ion Engine Engine Ion Engine Propulsion Advanced Treads Treads Advanced Treads Utility Small Storage Unit Storage Small Storage Unit Protection Light Armor Plating Weapon Light Cannon Energy Gun Small Laser Ballistic Gun Shotgun Ballistic Cannon Light Cannon Launcher Grenade Launcher Special Melee Weapon Improved Datajack Build | -11 -10 -9 -8 ------- Run | Yrd Mat Mat Mat Slots Evolved 4 | . . 2 2 Power 1 | . . . 1 Propulsion . | . . . . Utility 3 | . . 2 1 Weapon . | . . . . Parts Attached 19 | 6 3 6 4 Power 3 | 1 . 1 1 Engine 3 | 1 . 1 1 Core . | . . . . Reactor . | . . . . Propulsion 4 | 2 . 2 . Treads 4 | 2 . 2 . Leg . | . . . . Wheel . | . . . . Hover . | . . . . Flight . | . . . . Utility 2 | 1 . 1 . Device . | . . . . Storage 1 | 1 . . . Processor . | . . . . Hackware . | . . . . Protection 1 | . . 1 . Artifact . | . . . . Weapon 10 | 2 3 2 3 Energy Gun 2 | 2 . . . Energy Cannon . | . . . . Ballistic Gun 2 | . 1 . 1 Ballistic Cannon 4 | . 2 1 1 Launcher 1 | . . . 1 Special Weapon . | . . . . Impact Weapon . | . . . . Slashing Weapon . | . . . . Piercing Weapon . | . . . . Special Melee Weapon 1 | . . 1 . Unidentified Prototypes . | . . . . Parts Lost 7 | . . . 7 Power 1 | . . . 1 Propulsion 2 | . . . 2 Utility 2 | . . . 2 Weapon 2 | . . . 2 Highest Loss Streak 7 | . . . 7 To Critical Strikes . | . . . . Average Slot Usage (%) 72 | . 85 69 58 Engine 11 | . 14 11 9 Treads 22 | . 28 22 16 Storage 11 | . 14 11 8 Protection 3 | . . 3 7 Energy Gun 2 | . 8 . . Ballistic Gun 3 | . 5 . 7 Ballistic Cannon 14 | . 13 19 6 Special Melee Weapon 1 | . . 2 . Peak Build Rating 15 | 6 6 14 15 Average Rating 9 | 4 6 10 12 On Entrance 6 | . 6 6 12 Naked Turns . | . . . . Heaviest Build 23 | 13 16 19 23 Greatest Support 44 | 40 40 44 44 Greatest Overweight (x) 3 | . . . 3 Average Overweight (x) . | . . . . Largest Inventory Capacity 8 | 8 8 8 8 Average Capacity 7 | 7 8 8 7 Most Carried 8 | 4 8 8 8 Average Carried 6 | 1 6 6 6 Final Capacity 8 | 8 8 8 5 Final Carried 7 | 4 7 7 4 Class Distribution -------------------- 100% | Mutant Dominant Class ---------------- Mutant | -10/Materials Mutant | -9/Materials Mutant | -8/Materials Resources | -11 -10 -9 -8 ----------- Run | Yrd Mat Mat Mat Matter Collected 481 | 167 117 124 73 Remotely . | . . . . Salvage Created 217 | . 89 87 41 Parts 16 | . 2 13 1 Haulers Intercepted . | . . . . Recyclers Shooed . | . . . . Parts Field Recycled . | . . . . Retrieved Matter . | . . . . Parts Self-Destructed . | . . . . Prevented . | . . . . Kills | -11 -10 -9 -8 ------- Run | Yrd Mat Mat Mat Combat Hostiles Destroyed 11 | . 3 6 2 Guns 1 | . . . 1 Cannons 10 | . 3 6 1 Classes Destroyed 4 | . 1 1 2 Swarmer 4 | . . 4 . Grunt 5 | . 3 2 . Sentry 1 | . . . 1 Hunter 1 | . . . 1 Best Kill Streak 4 | . 2 4 1 Combat Bots Only 4 | . 2 4 1 Max Kills in Single Turn 1 | . 1 1 1 Gunslinging . | . . . . Exploded . | . . . . Melee . | . . . . Uniques/NPCs Destroyed . | . . . . Combat | -11 -10 -9 -8 -------- Run | Yrd Mat Mat Mat Hostile Shots Fired 144 | . 16 38 90 Missed 43 | . 3 12 28 Damage Taken 1633 | . 148 225 1260 Core 451 | . 34 17 400 Absorbed by Shields . | . . . . Core Remaining (%) 93 | 100 86 95 . Volleys Fired 52 | . 12 18 22 Largest 2 | . 2 2 2 Hottest 70 | . 70 70 70 Shots Fired 87 | . 24 24 39 Gun 16 | . . . 16 Cannon 62 | . 24 24 14 Launcher 9 | . . . 9 Special . | . . . . Kinetic 78 | . 24 24 30 Thermal . | . . . . Explosive 9 | . . . 9 Electromagnetic . | . . . . Robot Hit Streak 6 | . 3 4 6 Robot Miss Streak 8 | . 5 2 8 Penetration Max . | . . . . Secondary Targets . | . . . . Shots Hit Robots 52 | . 12 15 25 Core Hits 23 | . 4 6 13 Critical Kills . | . . . . Critical Parts Destroyed . | . . . . Critical Strikes 2 | . . 1 1 Blast 2 | . . 1 1 Melee Attacks . | . . . . Impact . | . . . . Slashing . | . . . . Piercing . | . . . . Sneak Attacks . | . . . . Combat Hostiles . | . . . . Follow-up Attacks . | . . . . Damage Inflicted 914 | . 205 290 419 Guns 147 | . . . 147 Cannons 620 | . 205 290 125 Explosions 147 | . . . 147 Melee . | . . . . Ramming . | . . . . Kinetic 767 | . 205 290 272 Thermal . | . . . . Explosive 147 | . . . 147 Electromagnetic . | . . . . Impact . | . . . . Slashing . | . . . . Piercing . | . . . . Highest Corruption . | . . . . Average Corruption . | . . . . Corruption Purged . | . . . . Corruption Blocked . | . . . . Overload Shots . | . . . . Overflow Damage . | . . . . Projectiles . | . . . . Explosions . | . . . . Melee . | . . . . Knockbacks 10 | . 2 6 2 Impact . | . . . . Kinetic 10 | . 2 6 2 Secondary . | . . . . Self-Inflicted Damage . | . . . . Shots . | . . . . Rammed . | . . . . Targets Rammed . | . . . . Kicked . | . . . . Crushed . | . . . . Highest Temperature 76 | . 76 45 19 Average Temperature 24 | . 31 17 5 Received Heat Transfer 255 | . 81 30 144 Siege Activations . | . . . . Robots Corrupted . | . . . . Combat Hostiles . | . . . . Parts Fried . | . . . . Impact Corruptions . | . . . . Robots Melted . | . . . . Combat Hostiles . | . . . . Parts Melted . | . . . . Heat Transferred . | . . . . Parts Sabotaged . | . . . . Parts Stolen . | . . . . Parts Stripped . | . . . . Power Chain Reactions . | . . . . Alert | -11 -10 -9 -8 ------- Run | Yrd Mat Mat Mat Peak Influence 143 | . 125 111 143 Initial 37 | . . . 37 Average 39 | . 51 22 86 Maximum Alert Level . | . . . . Low Security (%) 100 | 100 100 100 100 Level 1 . | . . . . Level 2 . | . . . . Level 3 . | . . . . Level 4 . | . . . . Level 5 . | . . . . High Security . | . . . . Max Security . | . . . . Squads Dispatched 9 | . 3 1 5 Investigation 1 | . 1 . . Extermination . | . . . . Reinforcement 6 | . 2 1 3 Assault . | . . . . Garrison 2 | . . . 2 Intercept . | . . . . Searches Triggered . | . . . . Construction Impeded 1 | . . . 1 Haulers Reinforced . | . . . . Active Scanning Responses . | . . . . Cargo Convoy Interrupts . | . . . . Stealth | -11 -10 -9 -8 --------- Run | Yrd Mat Mat Mat Distress Signals 4 | . . 1 3 Communications Jammed . | . . . . Distress Signals . | . . . . Times Spotted 31 | . 6 12 13 Peak Tracking Total 8 | . 2 5 8 Tactical Retreats . | . . . . Traps | -11 -10 -9 -8 ------- Run | Yrd Mat Mat Mat Traps Triggered 1 | . 1 . . Indirectly . | . . . . Trap Hack Attempts . | . . . . Triggered . | . . . . Disarmed . | . . . . Reprogrammed . | . . . . Reused . | . . . . Traps Extracted . | . . . . Installed . | . . . . Triggered . | . . . . Machines | -11 -10 -9 -8 ---------- Run | Yrd Mat Mat Mat Machines Disabled 2 | . 1 1 . Max in Single Turn 1 | . 1 1 . Machines Repaired . | . . . . Machines Dismantled . | . . . . Machines Sabotaged . | . . . . Overloaded Fab Kills . | . . . . Hacking | -11 -10 -9 -8 --------- Run | Yrd Mat Mat Mat Machines Accessed 5 | . 1 4 . Terminals 5 | . 1 4 . Fabricators . | . . . . Repair Stations . | . . . . Recycling Units . | . . . . Scanalyzers . | . . . . Garrison Access . | . . . . Total Hacks 9 | . 1 8 . Successful 6 | . 1 5 . Failed 3 | . . 3 . Catastrophic . | . . . . Database Lockouts . | . . . . Manual . | . . . . Terminals 9 | . 1 8 . Fabricators . | . . . . Repair Stations . | . . . . Recycling Units . | . . . . Scanalyzers . | . . . . Garrison Access . | . . . . Terminal Hacks 6 | . 1 5 . Record 3 | . . 3 . Dispatch Records 1 | . . 1 . Transport Status 1 | . . 1 . Zone Layout 1 | . 1 . . Fabricator Hacks . | . . . . Repair Station Hacks . | . . . . Recycling Unit Hacks . | . . . . Scanalyzer . | . . . . Garrison Access Hacks . | . . . . Unauthorized Hacks . | . . . . Terminals . | . . . . Fabricators . | . . . . Repair Stations . | . . . . Recycling Units . | . . . . Scanalyzers . | . . . . Garrison Access . | . . . . Data Cores Recovered . | . . . . Used . | . . . . Hacking Detections 4 | . 1 3 . Full Trace Events . | . . . . Feedback Events . | . . . . Feedback Blocked . | . . . . Robot Schematics Acquired . | . . . . Robots Built . | . . . . Authchips . | . . . . Time . | . . . . Total Robot Build Rating . | . . . . Part Schematics Acquired . | . . . . Parts Built . | . . . . Authchips . | . . . . Time . | . . . . Total Part Build Rating . | . . . . Parts Repaired . | . . . . Time . | . . . . Parts Recycled . | . . . . Recycled Matter . | . . . . Retrieved Matter . | . . . . Retrieved Components . | . . . . Parts Scanalyzed . | . . . . Part Schematics Acquired . | . . . . Parts Damaged . | . . . . Bothacking | -11 -10 -9 -8 ------------ Run | Yrd Mat Mat Mat Used RIF Installer . | . . . . Robots Hacked . | . . . . Non-combat . | . . . . Combat . | . . . . Robot Hacks Applied . | . . . . Relay Couplers Released . | . . . . Fabnet Peak Effective % . | . . . . Robots Rewired . | . . . . Allies Hacked . | . . . . Hacks Repelled . | . . . . Allies | -11 -10 -9 -8 -------- Run | Yrd Mat Mat Mat Total Allies . | . . . . Largest Group . | . . . . Highest-Rated Group . | . . . . Highest-Rated Ally . | . . . . Total Orders . | . . . . Ally Attacks . | . . . . Total Damage . | . . . . Kills . | . . . . Allies Corrupted . | . . . . Allies Melted . | . . . . Intel | -11 -10 -9 -8 ------- Run | Yrd Mat Mat Mat Robot Analysis Total . | . . . . Derelict Logs Recovered . | . . . . Drone Launches . | . . . . Drone Recoveries . | . . . . Exploration | -11 -10 -9 -8 ------------- Run | Yrd Mat Mat Mat Turns Passed 1368 | 115 407 622 224 Spaces Moved 740 | 67 199 376 98 Core 9 | 6 . . 3 Treads 731 | 61 199 376 95 Legs . | . . . . Wheels . | . . . . Hover . | . . . . Flight . | . . . . Fastest Speed 50 | 50 160 145 145 Average Speed 151 | 150 160 148 146 Slowest Speed 200 | 160 160 160 200 Overloaded Moves . | . . . . Propulsion Burnouts . | . . . . Robots Hopped . | . . . . Cave-ins Triggered . | . . . . Exploration Rate (%) 18 | 6 31 29 9 Regions Visited 3 Branch Regions . Pre-discovered Areas . | . . . . Known Exits Taken . | . . . . Unknown Exits Taken 3 | 1 1 1 . Scrap Searched . | . . . . Spaces Dug . | . . . . Terrain Destroyed 55 | . . . 55 Melee . | . . . . Projectile . | . . . . AOE 55 | . . . 55 Terrain Rammed . | . . . . Walls Destroyed . | . . . . Machines Disabled . | . . . . Actions | -11 -10 -9 -8 --------- Run | Yrd Mat Mat Mat Total 900 | 82 264 416 138 Wait 54 | . 40 2 12 Move 737 | 66 198 375 98 Hop . | . . . . Pick Up 26 | 10 7 8 1 Fast Attach . | . . . . Attach 8 | 6 . 1 1 Detach . | . . . . Swap 11 | . 3 5 3 Drop 12 | . 4 7 1 Fire 52 | . 12 18 22 Melee . | . . . . Ram . | . . . . Kick . | . . . . Crush . | . . . . Escape Stasis . | . . . . Rewire . | . . . . Trap . | . . . . Miscellaneous . | . . . . Route ------- -11/Scrapyard -10/Materials -9/Materials -8/Materials History --------- Turn | Location | Event 5 | -11/Scrapyard | Discovered new exit (range 16) 116 | -11/Scrapyard | Entered Materials 317 | -10/Materials | Build established: Mutant 492 | -10/Materials | Discovered new exit (range 15) 523 | -10/Materials | Entered another Materials area 523 | -9/Materials | Evolved 2 slots: Utility x2 1141 | -9/Materials | Discovered new exit (range 3) 1145 | -9/Materials | Entered another Materials area 1145 | -8/Materials | Evolved 2 slots: Power x1, Utility x1 1194 | -8/Materials | Garrison activated, responded to threat 1359 | -8/Materials | Core integrity fell below 50% 1369 | -8/Materials | Self-destructed Last Messages --------------- 01342_ Acquired 6 matter. 01344_ Sml. Storage Unit destroyed. 01346_ W-25 Informer sends out distress signal. 01350_ Slug penetrates Earth. 01350_ Shotgun destroyed. 01351_ Acquired 5 matter. 01353_ The unstable cave ceiling collapses. 01353_ Adv. Treads destroyed. 01353_ Knocked back. 01354_ Critical hit (Burn: +37). 01357_ S-10 Pest destroyed. 01359_ Acquired 7 matter. 01361_ Acquired 6 matter. 01363_ S-10 Pest destroyed. 01363_ G-47 Trooper destroyed. 01363_ Knocked back. 01364_ The unstable cave ceiling collapses. 01366_ W-25 Informer sends out distress signal. 01366_ Deuterium Engine destroyed. 01367_ The unstable cave ceiling collapses. Map ----- +----------------------------------------------------+ | ???????????! #?????????????????????? | | ?????????? #????""???????????????? | | ???????????"" #???? ????? ?????????? | | ???????????"" #??? ? ??????????? | | ????????????" #???""" ???????????? | | ???????????? ! #?? """ #????????????? | | ????????????? ??? "" #????????????? | | ????????????? ?? #????????????? | | ??????????####+### #????????????? | | ??????????# #????????????? | | ??????????# #????????????? | | ??????????# *= #????????????? | | ????????######+###########????????????? | | ????????# #????????????????????? | | ????????# """"" #????????????????????? | | ????????# """"" #????????????????????? | | ????????# """"" #????????????????????? | | ????????# #????????????????????? | | ????????#" """" #????????????????????? | | ????????#T """" #????????????????????? | | ????????#" """" #????????????????????? | | ????????# #????????????????????? | | ????????###/######????????????????????? | | ??????????# ######?#????####??????????? | | ??????????# # # T???!!! #??????????? | | ??????????# # @ # ?? !! #??????????? | | ??????????# #!= # """ !! #??????????? | | ?????????## #g%= # """ #??????????? | | ?????????# +=== # """ #??????????? | | ?????????# #Ys # #??????????? | | ?????????+ ];] ! # #??????????? | | ?????????# #% % # ???????????? | | ???????###% ## # # # ##????????????? | | ???????#" H ##????????????? | | ???????## #????????????? | | ????????# * % #????????????? | | ????????# # # #????????????? | | ????????##### # #????????????? | | ?????????????# # # ?????????? | | ?????????????##### "" ??????? | | ?????????????????? "" """??????? | | ??????????????????? # "T ""???????? | | ??????????????????? "" ?? ?????????? | | ??????????????????? # "" ????????????? | | ??????????????????? # ????????????? | | ??????????????????? #?##?????????????? | | ??????????????????? #????????????????? | | ???????????????????? ????????????????? | | ???????????????????? ????????????????? | | ???????????????????? ????????????????? | +----------------------------------------------------+ Best States ------------- Heat Dissipation 31 Energy Generation 14 Energy Capacity 275 Matter Stores 231 Matter Capacity 300 Sight Range 16 Terrain Scan Density 10 Armor Coverage 150 Evasion (%) 40 Recoil Reduction 2 Item Schematics ----------------- None Robot Schematics ------------------ None Fabricated ------------ Nothing Alien Tech Used ----------------- None Achievements -------------- None Challenges ------------ None Game ------ Seed WardroneRecoilMegatreads Manual? 0 Play Time 00:10:40 Cumulative 24.7 hours Start 2024.10.03 @ 04:55:15 End 2024.10.03 @ 05:06:39 Sessions 1 Manual Loads 0 Difficulty Rogue Special Mode None Game No. 135 Rogue 135 Adventurer 0 Explorer 0 Win Type - Total 0 Types 0/0/0/0/0/0/0/0/0 Lore% 5 Gallery% 23 Achievement% 17 Wizard Run 0 Options --------- Layout 0 ASCII 0 Keyboard 0 Movement Arrows Keybinds 0 Fullscreen 2 Font 24/Cog Map View 76x50 Zoom Use 0% Tactical HUD 1 Map Filters NONE Filters NONE Steam 1 RUN: f6e81d3c-e79a-4d22-822e-1f5d8ec892e0